fUST/lending_fUST_20250423
["ID","MTS","AMOUNT","RATE_DAILY","PERIOD"]
[358690272,1745374231986,-1002.38800012,0.00020063,2]
[358690380,1745374238058,-500.0,0.00020062,2]
[358690381,1745374238068,-185.7682816,0.00020062,2]
[358690382,1745374238077,-235.13718688,0.00020062,2]
[358690383,1745374238087,-500.0,0.00020062,2]
[358690384,1745374238097,-500.0,0.00020062,2]
[358690385,1745374238109,-500.0,0.00020062,2]
[358690386,1745374238119,-500.0,0.00020062,2]
[358690387,1745374238132,-500.0,0.00020062,2]
[358690388,1745374238142,-500.0,0.00020062,2]
[358690389,1745374238152,-358.89380612,0.00020062,2]
[358690390,1745374238163,-500.0,0.00020062,2]
[358690391,1745374238172,-500.0,0.00020062,2]
[358690392,1745374238183,-500.0,0.00020062,2]
[358690393,1745374238193,-500.0,0.00020062,2]
[358690394,1745374238204,-500.0,0.00020062,2]
[358690395,1745374238214,-500.0,0.00020062,2]
[358690396,1745374238225,-500.0,0.00020062,2]
[358690397,1745374238234,-482.55877356,0.00020062,2]
[358690398,1745374238244,-500.0,0.00020062,2]
[358690400,1745374238255,-500.0,0.00020062,2]
[358690402,1745374238265,-500.0,0.00020062,2]
[358690403,1745374238275,-500.0,0.00020062,2]
[358690404,1745374238284,-500.0,0.00020062,2]
[358690405,1745374238294,-500.0,0.00020062,2]
[358690406,1745374238303,-500.0,0.00020062,2]
[358690407,1745374238314,-500.0,0.00020062,2]
[358690408,1745374238323,-500.0,0.00020062,2]
[358690409,1745374238333,-500.0,0.00020062,2]
[358690410,1745374238342,-500.0,0.00020062,2]
[358690411,1745374238352,-500.0,0.00020062,2]
[358690412,1745374238361,-500.0,0.00020062,2]
[358690413,1745374238371,-500.0,0.00020062,2]
[358690414,1745374238380,-500.0,0.00020062,2]
[358690415,1745374238390,-500.0,0.00020062,2]
[358690416,1745374238400,-437.26859301,0.00020062,2]
[358690417,1745374238409,-500.0,0.00020062,2]
[358690418,1745374238419,-18351.65101719,0.00020063,2]
[358690419,1745374238431,-9271.58104995,0.00020063,2]
[358690420,1745374238447,-659.85172841,0.00020063,2]
[358690421,1745374238458,-1421.20740599,0.00020063,2]
[358690422,1745374238470,-473740.03806692,0.00020063,2]
[358690609,1745374243130,-2129.49859107,0.00020063,2]
[358690763,1745374246023,-273329.54411865,0.00020063,2]
[358690765,1745374246034,-1000.0,0.00020064,5]
[358690767,1745374246043,-2252.45085279,0.00020123,2]
[358690769,1745374246055,-2252.45085279,0.00020282,2]
[358690771,1745374246064,-2252.45085279,0.0002044,2]
[358690773,1745374246073,-216.79400548,0.00020488,2]
[358690775,1745374246083,-250.0,0.00020598,2]
[358690777,1745374246097,-2252.45085279,0.00020599,2]
[358690779,1745374246107,-285.6028791,0.00020611,2]
[358690781,1745374246116,-500.0,0.00020673,2]
[358690783,1745374246126,-500.0,0.00020673,2]
[358690785,1745374246137,-500.0,0.00020673,2]
[358690787,1745374246148,-438.8207562,0.00020673,2]
[358690789,1745374246159,-551.27280319,0.00020673,2]
[358690791,1745374246169,-500.0,0.00020673,2]
[358690793,1745374246180,-500.0,0.00020673,2]
[358690794,1745374246190,-500.0,0.00020673,2]
[358690796,1745374246200,-500.0,0.00020673,2]
[358690798,1745374246210,-500.0,0.00020673,2]
[358690800,1745374246220,-500.0,0.00020673,2]
[358690802,1745374246230,-448.80131538,0.00020673,2]
[358690804,1745374246239,-500.0,0.00020673,2]
[358690806,1745374246250,-637.80866703,0.00020673,2]
[358690807,1745374246259,-500.0,0.00020673,2]
[358690808,1745374246269,-325.00980826,0.00020673,2]
[358690809,1745374246278,-500.0,0.00020673,2]
[358690810,1745374246288,-500.0,0.00020673,2]
[358690811,1745374246298,-500.0,0.00020673,2]
[358690812,1745374246311,-500.0,0.00020673,2]
[358690813,1745374246320,-500.86715204,0.00020673,2]
[358690815,1745374246330,-500.0,0.00020673,2]
[358690817,1745374246339,-500.0,0.00020673,2]
[358690819,1745374246349,-500.0,0.00020673,2]
[358690821,1745374246359,-500.0,0.00020673,2]
[358690823,1745374246369,-501.18520035,0.00020673,2]
[358690825,1745374246379,-503.33808015,0.00020673,2]
[358690827,1745374246388,-160.07136537,0.00020673,2]
[358690829,1745374246397,-509.81674071,0.00020673,2]
[358690831,1745374246407,-500.0,0.00020673,2]
[358690833,1745374246416,-500.0,0.00020673,2]
[358690835,1745374246426,-500.0,0.00020673,2]
[358690837,1745374246435,-500.0,0.00020673,2]
[358690839,1745374246445,-300.0,0.00020673,2]
[358690841,1745374246455,-509.16953182,0.00020673,2]
[358690843,1745374246465,-500.0,0.00020673,2]
[358690845,1745374246475,-500.0,0.00020673,2]
[358690847,1745374246484,-500.0,0.00020673,2]
[358690849,1745374246493,-501.34555104,0.00020673,2]
[358690851,1745374246503,-500.0,0.00020673,2]
[358690853,1745374246512,-500.0,0.00020673,2]
[358690855,1745374246522,-500.0,0.00020673,2]
[358690857,1745374246531,-500.0,0.00020673,2]
[358690859,1745374246542,-501.01539603,0.00020673,2]
[358690860,1745374246552,-500.0,0.00020673,2]
[358690861,1745374246562,-185.866057,0.00020673,2]
[358690862,1745374246572,-6507.60307936,0.00020673,2]
[358690863,1745374246586,-5203.84786689,0.00020673,2]
[358690864,1745374246596,-415.03772392,0.00020688,2]
[358690865,1745374246606,-151.0,0.00020688,2]
[358690866,1745374246618,-153.21441081,0.00020688,2]
[358690867,1745374246628,-152.71264761,0.00020688,2]
[358690868,1745374246637,-210.57800616,0.00020688,2]
[358690869,1745374246647,-1000.0,0.00020699,2]
[358690870,1745374246656,-160.74426532,0.00020699,2]
[358690871,1745374246665,-2429.02899596,0.000207,2]
[358690872,1745374246677,-3822.10913016,0.000207,2]
[358690929,1745374261872,2333.21188816,0.000189,2]
[358690930,1745374269099,1000.0,0.00019964,2]
[358690934,1745374419580,3263.12855212,0.0002,2]
[358690940,1745374452955,1496.75733754,0.00019963,2]
[358690944,1745374563222,1555.4745921,0.000189,2]
[358690951,1745374864432,1036.9830614,0.000189,2]
[358691033,1745375152600,152.36673674,0.0002,2]
[358691034,1745375165592,691.32204094,0.000189,2]
[358691053,1745375276464,153328.79914033,0.00018,2]
[358691057,1745375301378,160.0,0.0002,3]
[358691059,1745375318000,279.19044432,0.0001,2]
[358691061,1745375323035,9525.1734199,0.00025,120]
[358691062,1745375323760,28345.65660214,0.00017,2]
[358691063,1745375325357,325.63999327,0.00019177,4]
[358691064,1745375325795,159.88645448,0.0002,7]
[358691065,1745375327096,809.06015625,0.000175,4]
[358691066,1745375329756,28888.57224154,0.00018,2]
[358691067,1745375330897,1578.0164579,0.0002,120]
[358691068,1745375332786,9529.84045649,0.00015,2]
[358691069,1745375334355,181.89801493,0.0002,2]
[358691077,1745375413954,285.60287911,0.00020009,2]
[358691087,1745375432082,-683.09493973,0.00020047,2]
[358691088,1745375432094,-15445.45887746,0.00020047,2]
[358691089,1745375432106,-42891.9559993,0.00020047,2]
[358691090,1745375432141,-801.54073666,0.00020047,2]
[358691109,1745375438375,-767.5339905,0.00020047,2]
[358691137,1745375446179,-34153.27117635,0.00020047,2]
[358691138,1745375446190,-285.60287911,0.00020403,2]
[358691139,1745375446200,-660.0,0.00020499,2]
[358691140,1745375446210,-7724.7936628,0.000205,2]
[358691141,1745375446220,-300.0,0.0002051,2]
[358691142,1745375446230,-1830.53924543,0.00020511,2]
[358691143,1745375446240,-152.0,0.00020545,2]
[358691144,1745375446263,-194.34,0.00020563,3]
[358691145,1745375446275,-500.0,0.00020573,2]
[358691146,1745375446286,-500.0,0.00020573,2]
[358691147,1745375446299,-500.0,0.00020573,2]
[358691148,1745375446312,-500.0,0.00020573,2]
[358691149,1745375446326,-152.08944437,0.00020573,2]
[358691150,1745375446338,-500.0,0.00020573,2]
[358691151,1745375446349,-500.9596923,0.00020573,2]
[358691152,1745375446359,-588.19778783,0.00020573,2]
[358691153,1745375446369,-500.0,0.00020573,2]
[358691154,1745375446378,-612.02481859,0.00020573,2]
[358691155,1745375446388,-504.25799426,0.00020573,2]
[358691156,1745375446398,-384.11110486,0.00020573,2]
[358691157,1745375446410,-500.0,0.00020573,2]
[358691158,1745375446420,-500.0,0.00020573,2]
[358691159,1745375446430,-300.0,0.00020573,2]
[358691160,1745375446440,-500.0,0.00020573,2]
[358691161,1745375446450,-500.0,0.00020573,2]
[358691162,1745375446461,-500.0,0.00020573,2]
[358691163,1745375446471,-500.0,0.00020573,2]
[358691164,1745375446481,-500.0,0.00020573,2]
[358691165,1745375446491,-500.0,0.00020573,2]
[358691166,1745375446501,-500.0,0.00020573,2]
[358691167,1745375446511,-500.0,0.00020573,2]
[358691168,1745375446521,-500.0,0.00020573,2]
[358691169,1745375446530,-18882.12100378,0.00020573,2]
[358691170,1745375446544,-27938.19044028,0.00020573,2]
[358691171,1745375446553,-151.0,0.00020588,2]
[358691172,1745375446564,-167.967719,0.00020588,2]
[358691173,1745375446573,-499.999996,0.0002059,2]
[358691174,1745375446583,-566.28654943,0.00020599,2]
[358691175,1745375446593,-500.0,0.00020599,2]
[358691176,1745375446604,-500.0,0.00020599,2]
[358691177,1745375446614,-500.0,0.00020599,2]
[358691178,1745375446624,-519.19768843,0.00020599,2]
[358691179,1745375446635,-394.3193824,0.00020599,2]
[358691180,1745375446645,-188.07450413,0.00020599,2]
[358691181,1745375446655,-500.0,0.00020599,2]
[358691182,1745375446665,-500.0,0.00020599,2]
[358691183,1745375446675,-634.88683647,0.00020599,2]
[358691184,1745375446685,-500.0,0.00020599,2]
[358691185,1745375446871,-500.0,0.00020599,2]
[358691186,1745375446882,-500.0,0.00020599,2]
[358691187,1745375446892,-500.0,0.00020599,2]
[358691188,1745375446902,-500.0,0.00020599,2]
[358691189,1745375446912,-70093.78261715,0.000206,2]
[358691190,1745375447081,-103961.35532562,0.000206,2]
[358691191,1745375447093,-1170.84954425,0.000206,2]
[358691192,1745375467012,460.88136062,0.000189,2]
[358691209,1745375693015,239334.28745001,0.0002,2]
[358691210,1745375768637,307.25424042,0.000189,2]
[358691274,1745376070031,204.83616028,0.000189,2]
[358691286,1745376402537,6423.254896,0.0001954,2]
[358691287,1745376447311,2180.8008655,0.00019559,2]
[358691298,1745376632403,-186.66282834,0.0002047,2]
[358691299,1745376632413,-6179.83493024,0.0002047,2]
[358691300,1745376632423,-1941.91922157,0.00020471,2]
[358691301,1745376632433,-151.0,0.00020488,2]
[358691302,1745376632443,-300.0,0.00020498,2]
[358691303,1745376632454,-514.98742628,0.00020499,2]
[358691304,1745376632464,-500.0,0.00020499,2]
[358691305,1745376632473,-500.0,0.00020499,2]
[358691306,1745376632483,-500.0,0.00020499,2]
[358691307,1745376632492,-500.0,0.00020499,2]
[358691308,1745376632502,-500.0,0.00020499,2]
[358691309,1745376632511,-500.0,0.00020499,2]
[358691310,1745376632522,-500.0,0.00020499,2]
[358691314,1745376632690,-500.0,0.00020499,2]
[358691315,1745376632700,-500.0,0.00020499,2]
[358691316,1745376632710,-500.0,0.00020499,2]
[358691317,1745376632720,-278.9814892,0.00020499,2]
[358691318,1745376632729,-500.0,0.00020499,2]
[358691319,1745376632739,-500.0,0.00020499,2]
[358691320,1745376632748,-500.0,0.00020499,2]
[358691321,1745376632758,-500.0,0.00020499,2]
[358691322,1745376632769,-500.0,0.00020499,2]
[358691323,1745376632779,-500.0,0.00020499,2]
[358691324,1745376632788,-500.0,0.00020499,2]
[358691325,1745376632798,-500.0,0.00020499,2]
[358691326,1745376632808,-500.0,0.00020499,2]
[358691327,1745376632818,-500.0,0.00020499,2]
[358691328,1745376632829,-500.0,0.00020499,2]
[358691329,1745376632839,-500.0,0.00020499,2]
[358691330,1745376632848,-500.0,0.00020499,2]
[358691331,1745376632858,-500.0,0.00020499,2]
[358691332,1745376632867,-500.0,0.00020499,2]
[358691333,1745376632877,-500.0,0.00020499,2]
[358691334,1745376632887,-500.0,0.00020499,2]
[358691335,1745376632897,-500.0,0.00020499,2]
[358691336,1745376632907,-500.0,0.00020499,2]
[358691337,1745376632917,-500.0,0.00020499,2]
[358691338,1745376632927,-500.0,0.00020499,2]
[358691339,1745376632937,-500.0,0.00020499,2]
[358691340,1745376632947,-500.0,0.00020499,2]
[358691341,1745376632956,-500.0,0.00020499,2]
[358691342,1745376632967,-300.0,0.00020499,2]
[358691343,1745376632976,-500.0,0.00020499,2]
[358691344,1745376632987,-192678.14183036,0.000205,2]
[358691358,1745376640716,-3789.13783666,0.000205,2]
[358691366,1745376643851,-412.60625222,0.000205,2]
[358691384,1745376646326,-10610.00704735,0.000205,2]
[358691385,1745376646346,-1337.380915,0.000205,2]
[358691386,1745376646363,-8011.1,0.000205,2]
[358691387,1745376646387,-14484.99945243,0.000205,2]
[358691402,1745376784188,-300.0,0.00020499,2]
[358691403,1745376784213,-266.3756473,0.000205,2]
[358691404,1745376787584,-438.15041329,0.000205,2]
[358691405,1745376800461,-160.7133882,0.000205,2]
[358691406,1745376803182,-152.79937046,0.000205,2]
[358691407,1745376831649,-202.4274,0.000205,2]
[358691408,1745376841503,-1000.0,0.00045716,2]
[358691409,1745376859914,-300.0,0.00020499,2]
[358691410,1745376859948,-88.73652042,0.000205,2]
[358691411,1745376894151,-229.461972,0.00020399,2]
[358691412,1745376904082,-152.79044411,0.00020399,2]
[358691413,1745376909952,-300.0,0.00020399,2]
[358691414,1745376920858,-288.83822356,0.00020399,2]
[358691415,1745376931134,-28.90936033,0.00020399,2]
[358691416,1745376931159,-151.0,0.00020488,2]
[358691417,1745376931184,-1.12153986,0.00020499,2]
[358691418,1745376949056,-250.0,0.00020499,2]
[358691419,1745376960157,-48.87846014,0.00020499,2]
[358691420,1745376960180,-300.0,0.00020499,2]
[358691421,1745376960203,-59.12153986,0.000205,2]
[358691422,1745376961293,-359.12153986,0.000205,2]
[358691423,1745376967074,-205.58088822,0.00020499,2]
[358691424,1745376980327,-94.41911178,0.00020499,2]
[358691425,1745376980351,-104.12506046,0.000205,2]
[358691427,1745376996665,-259.16177644,0.000205,2]
[358691428,1745377000899,-152.0,0.000205,2]
[358691429,1745377020022,-240.992,0.000205,2]
[358691430,1745377025840,-184.5016124,0.00020499,2]
[358691431,1745377037925,-240.991854,0.00020299,2]
[358691432,1745377041156,-115.4983876,0.00020499,2]
[358691433,1745377041181,-203.5016124,0.000205,2]
[358691434,1745377044648,-507.44270944,0.000205,2]
[358691435,1745377057466,-192.19267663,0.000205,2]
[358691436,1745377062788,-404.97154755,0.000205,2]
[358691437,1745377066516,-479.71164355,0.000205,2]
[358691438,1745377089679,-230.40778909,0.000204,2]
[358691439,1745377096643,-19.59221091,0.000204,2]
[358691440,1745377096666,-300.0,0.00020499,2]
[358691441,1745377096688,-91.56956553,0.000205,2]
[358691442,1745377101203,-501.72105886,0.000205,2]
[358691443,1745377104257,-229.72417105,0.000205,2]
[358691444,1745377132020,-261.74981285,0.000205,2]
[358691445,1745377143559,-152.0,0.000204,2]
[358691446,1745377159422,-255.80732337,0.000204,2]
[358691447,1745377184813,-235.76200499,0.00020399,2]
[358691448,1745377191897,-279.92358485,0.000204,2]
[358691449,1745377195589,-220.07641515,0.00020398,2]
[358691450,1745377202143,-152.0,0.00020398,2]
[358691451,1745377203139,408.0,0.00017,2]
[358691452,1745377207817,-32.8951324,0.00020398,2]
[358691453,1745377207844,-157.24190575,0.00020399,2]
[358691454,1745377220174,-142.75809425,0.00020399,2]
[358691455,1745377220200,-8.0056925,0.00020399,2]
[358691456,1745377229767,-159.0991751,0.000203,2]
[358691457,1745377238331,-16.30059635,0.000203,2]
[358691458,1745377238358,-233.69940365,0.00020399,2]
[358691459,1745377256918,-158.4189276,0.00020399,2]
[358691460,1745377273079,-229.46198,0.00020399,2]
[358691461,1745377290084,-270.41399625,0.00020399,2]
[358691462,1745377290109,-175.72750375,0.00020399,2]
[358691464,1745377312194,229.461972,0.00019815,2]
[358691465,1745377323324,-255.03957127,0.00020319,2]
[358691466,1745377335359,-152.0,0.00020319,2]
[358691467,1745377340440,-152.0,0.00020298,2]
[358691468,1745377366378,-106.76991825,0.00020298,2]
[358691469,1745377366404,-136.08718175,0.00020319,2]
[358691470,1745377381795,-152.8687,0.00020319,2]
[358691471,1745377382072,-152.86869677,0.00020319,2]
[358691472,1745377402081,-237.3485,0.00020318,2]
[358691473,1745377422498,-62.6515,0.00020318,2]
[358691474,1745377422524,-183.28106,0.00020319,2]
[358691475,1745377438592,-304.212,0.00020319,2]
[358691476,1745377444082,-234.15551216,0.00020318,2]
[358691477,1745377450440,-166.794634,0.00020105,2]
[358691478,1745377451482,-83.205366,0.00020105,2]
[358691479,1745377451508,-65.84448784,0.00020318,2]
[358691480,1745377451532,-17.74478016,0.00020319,2]
[358691481,1745377469756,-181.2054,0.00020319,2]
[358691482,1745377474933,-152.0,0.00020198,2]
[358691483,1745377496807,-270.49793,0.00020198,2]
[358691484,1745377504235,-124.35916562,0.00020198,2]
[358691485,1745377504260,-175.64083438,0.00020319,2]
[358691486,1745377520792,-335.8459,0.00020319,2]
[358691487,1745377551230,770.4979208,0.00019505,2]
[358691488,1745377552384,-286.6775438,0.00020319,2]
[358691489,1745377562005,-214.1465643,0.00020319,2]
[358691490,1745377575390,-300.0,0.00020319,2]
[358691491,1745377591828,-300.0,0.00020319,2]
[358691492,1745377593167,2527.586917,0.00019506,2]
[358691493,1745377607897,-252.9808,0.00020319,2]
[358691494,1745377616119,-171.19814605,0.00020398,2]
[358691495,1745377624529,-152.16871393,0.00020398,2]
[358691496,1745377633861,-300.0,0.00020314,2]
[358691497,1745377633980,-300.0,0.00020314,2]
[358691499,1745377646339,-160.0,0.00020314,2]
[358691501,1745377672587,-602.2143,0.00020314,2]
[358691502,1745377682214,-340.05821124,0.00020314,2]
[358691503,1745377698774,-214.1466,0.00020314,2]
[358691504,1745377717597,-525.4918,0.00020314,2]
[358691505,1745377742634,-160.0,0.00020298,2]
[358691506,1745377742657,-27.75411623,0.00020314,2]
[358691508,1745377760153,448.5744618,0.00019515,2]
[358691509,1745377762246,-187.75411623,0.00020314,2]
[358691512,1745377802422,-365.29536952,0.00020314,2]
[358691516,1745377808883,-290.867,0.00020312,2]
[358691524,1745377832472,-609.133,0.00020312,2]
[358691525,1745377832482,-65348.92619681,0.00020313,2]
[358691545,1745377838621,-500.0,0.00020312,2]
[358691547,1745377838631,-500.0,0.00020312,2]
[358691549,1745377838640,-500.0,0.00020312,2]
[358691551,1745377838650,-500.0,0.00020312,2]
[358691553,1745377838659,-500.0,0.00020312,2]
[358691555,1745377838669,-500.0,0.00020312,2]
[358691557,1745377838679,-500.0,0.00020312,2]
[358691559,1745377838688,-500.0,0.00020312,2]
[358691561,1745377838698,-500.0,0.00020312,2]
[358691564,1745377838707,-500.0,0.00020312,2]
[358691566,1745377838717,-562.6270443,0.00020312,2]
[358691568,1745377838727,-500.0,0.00020312,2]
[358691570,1745377838736,-500.0,0.00020312,2]
[358691572,1745377838745,-500.0,0.00020312,2]
[358691574,1745377838755,-500.0,0.00020312,2]
[358691576,1745377838763,-500.0,0.00020312,2]
[358691578,1745377838772,-500.0,0.00020312,2]
[358691580,1745377838782,-500.0,0.00020312,2]
[358691581,1745377838791,-500.0,0.00020312,2]
[358691583,1745377838801,-500.0,0.00020312,2]
[358691586,1745377838810,-311699.75957319,0.00020313,2]
[358691588,1745377838820,-1241.03362447,0.00020314,2]
[358691590,1745377838829,-300.0,0.00020398,2]
[358691592,1745377838839,-500.0,0.00020399,2]
[358691594,1745377838848,-156.7882633,0.00020399,2]
[358691596,1745377838857,-183963.79819813,0.000204,2]
[358691600,1745377838880,-11000.0,0.000204,2]
[358691603,1745377838896,-500.0,0.00020312,2]
[358691605,1745377838906,-12423.49227595,0.000204,2]
[358691633,1745377840760,-500.0,0.00020312,2]
[358691634,1745377840770,-500.0,0.00020312,2]
[358691635,1745377840780,-2830.91093391,0.000204,2]
[358691703,1745377843642,-1271.11848072,0.000204,2]
[358691704,1745377843654,-2825.65258652,0.000204,2]
[358691705,1745377843693,-18594.0595008,0.000204,2]
[358691717,1745377846428,-518.07554671,0.000204,2]
[358691718,1745377846443,-436.73,0.000204,2]
[358691719,1745377846484,-135448.43156904,0.000204,2]
[358691720,1745377846494,-152.0,0.00020413,2]
[358691721,1745377846506,-4263.74813769,0.0002069,2]
[358691722,1745377846517,-151.96,0.00020714,7]
[358691723,1745377846527,-500.0,0.0002072,2]
[358691724,1745377846539,-2496.310558,0.00020758,2]
[358691725,1745377846551,-317.4189324,0.000208,2]
[358691726,1745377846562,-385.0756047,0.000208,2]
[358691727,1745377846572,-153.0,0.000208,2]
[358691728,1745377846581,-300.83333432,0.00020852,2]
[358691729,1745377846592,-359.0,0.00020852,2]
[358691730,1745377846602,-359.0,0.00020852,2]
[358691731,1745377846613,-359.0,0.00020852,2]
[358691732,1745377846622,-319.0,0.00020852,2]
[358691733,1745377846632,-319.0,0.00020852,2]
[358691734,1745377846643,-319.0,0.00020852,2]
[358691735,1745377846652,-319.0,0.00020852,2]
[358691736,1745377846663,-319.0,0.00020852,2]
[358691737,1745377846673,-319.0,0.00020852,2]
[358691738,1745377846682,-319.0,0.00020852,2]
[358691739,1745377846692,-319.0,0.00020852,2]
[358691740,1745377846701,-319.0,0.00020852,2]
[358691741,1745377846877,-319.0,0.00020852,2]
[358691742,1745377846888,-319.0,0.00020852,2]
[358691743,1745377846899,-183.0,0.00020873,2]
[358691744,1745377846909,-501.72105886,0.0002088,2]
[358691745,1745377846920,-4309.82454379,0.0002099,2]
[358691746,1745377846930,-9512.16122278,0.00021,5]
[358691747,1745377846939,-566.3756473,0.00021,2]
[358691748,1745377846950,-160.7133882,0.00021,2]
[358691749,1745377846963,-157.69,0.00021,2]
[358691750,1745377846972,-500.0,0.0002105,2]
[358691751,1745377846983,-4263.74813769,0.00021066,2]
[358691752,1745377846993,-151.0,0.00021174,2]
[358691753,1745377847003,-500.0,0.00021174,2]
[358691754,1745377847013,-500.0,0.00021174,2]
[358691755,1745377847023,-500.0,0.00021174,2]
[358691756,1745377847034,-161.53877952,0.00021174,2]
[358691757,1745377847044,-500.0,0.00021174,2]
[358691758,1745377847054,-151.0,0.00021174,2]
[358691759,1745377847064,-151.0,0.00021174,2]
[358691760,1745377847076,-167.94655257,0.00021174,2]
[358691761,1745377847097,-159.31079338,0.00021174,2]
[358691762,1745377847108,-151.0,0.00021174,2]
[358691763,1745377847118,-500.0,0.00021174,2]
[358691764,1745377847127,-500.0,0.00021174,2]
[358691765,1745377847136,-151.0,0.00021174,2]
[358691766,1745377847147,-151.0,0.00021174,2]
[358691767,1745377847157,-151.0,0.00021174,2]
[358691768,1745377847166,-151.0,0.00021174,2]
[358691769,1745377847175,-500.0,0.00021174,2]
[358691770,1745377847185,-301.4075921,0.00021174,2]
[358691771,1745377847195,-500.0,0.00021174,2]
[358691772,1745377847204,-151.0,0.00021174,2]
[358691773,1745377847214,-151.0,0.00021174,2]
[358691774,1745377847224,-151.0,0.00021174,2]
[358691775,1745377847235,-429.0,0.00021174,2]
[358691776,1745377847245,-429.0,0.00021174,2]
[358691777,1745377847254,-301.28461672,0.00021174,2]
[358691778,1745377847264,-151.0,0.00021174,2]
[358691779,1745377847275,-151.0,0.00021174,2]
[358691780,1745377847284,-151.0,0.00021174,2]
[358691781,1745377847294,-151.0,0.00021174,2]
[358691782,1745377847303,-169.60236544,0.00021174,2]
[358691783,1745377847313,-500.0,0.00021174,2]
[358691784,1745377847322,-151.51860845,0.00021174,2]
[358691785,1745377847332,-500.0,0.00021174,2]
[358691786,1745377847341,-151.0,0.00021174,2]
[358691787,1745377847351,-151.0,0.00021174,2]
[358691788,1745377847360,-151.38825119,0.00021174,2]
[358691789,1745377847371,-500.0,0.00021174,2]
[358691790,1745377847383,-500.0,0.00021174,2]
[358691791,1745377847392,-151.0,0.00021174,2]
[358691792,1745377847402,-500.0,0.00021174,2]
[358691793,1745377847411,-151.0,0.00021174,2]
[358691794,1745377847423,-500.0,0.00021174,2]
[358691795,1745377847433,-500.0,0.00021174,2]
[358691796,1745377847442,-160.0,0.000213,3]
[358691797,1745377847451,-160.0,0.000213,3]
[358691798,1745377847461,-729.16666667,0.000213,3]
[358691799,1745377847471,-12573.79847128,0.000213,3]
[358691800,1745377847481,-12320.01091088,0.000213,3]
[358691801,1745377847491,-4263.74813769,0.00021441,2]
[358691802,1745377847501,-151.0,0.00021448,2]
[358691803,1745377847510,-568.73579453,0.00021448,2]
[358691804,1745377847520,-500.0,0.00021448,2]
[358691805,1745377847530,-500.0,0.00021448,2]
[358691806,1745377847539,-603.14635008,0.00021448,2]
[358691807,1745377847549,-151.0,0.00021448,2]
[358691808,1745377847559,-151.0,0.00021448,2]
[358691809,1745377847569,-151.0,0.00021448,2]
[358691810,1745377847579,-500.0,0.00021448,2]
[358691811,1745377847589,-500.0,0.00021448,2]
[358691812,1745377847599,-151.0,0.00021448,2]
[358691813,1745377847610,-300.49399459,0.00021448,2]
[358691814,1745377847620,-151.0,0.00021448,2]
[358691815,1745377847630,-151.0,0.00021448,2]
[358691816,1745377847639,-500.0,0.00021448,2]
[358691817,1745377847649,-500.0,0.00021448,2]
[358691818,1745377847659,-151.0,0.00021448,2]
[358691819,1745377847669,-151.0,0.00021448,2]
[358691820,1745377847678,-429.0,0.00021448,2]
[358691821,1745377847688,-429.0,0.00021448,2]
[358691822,1745377847699,-151.0,0.00021448,2]
[358691823,1745377847715,-500.0,0.00021448,2]
[358691824,1745377847731,-501.38184405,0.00021448,2]
[358691825,1745377847743,-151.0,0.00021448,2]
[358691826,1745377847754,-500.0,0.00021448,2]
[358691827,1745377847764,-500.0,0.00021448,2]
[358691828,1745377847775,-500.0,0.00021448,2]